[Event "MGL-ch Men 2018"]
[Site "Archangai-Aimag"]
[Date "2018.05.25"]
[Round "7"]
[White "Battulga, Namkhai"]
[Black "Erdene, Ganzorig"]
[Result "1-0"]
[ECO "B10"]
[WhiteElo "2404"]
[BlackElo "2299"]
[Annotator "ChessBase"]
[PlyCount "20"]
[EventType "tourn"]
[EventCountry "MGL"]
[SourceTitle "playchess.com"]
[Source "ChessBase"]
[SourceQuality "1"]
[TimeControl "40/5400+30:1800+30"]

1. e4 {[%emt 0:42:10]} c6 {[%emt 0:00:05]} 2. c4 {[%emt 0:00:00]} d5 {[%emt 0:00:05]} 3. exd5 {[%emt 0:00:00]} cxd5 4. cxd5 {[%emt 0:00:00]} Nf6 {[%emt 0:00:08]} 5. Qa4+ {[%emt 0:02:24]} Nbd7 {[%emt 0:00:10]} 6. Nc3 {[%emt 0:00:22]} g6 {[%emt 0:00:06]} 7. Nf3 {[%emt 0:00:24]} Bg7 {[%emt 0:00:10]} 8. Bc4 {[%emt 0:00:06]} a6 {[%emt 0:06:59]} 9. d3 {[%emt 0:00:53]} O-O {[%emt 0:00:21]} 10. Qa3 {[%emt 0:02:25]} b6 {[%emt 0:04:59]} 1-0

[Event "MGL-ch Men 2018"]
[Site "Archangai-Aimag"]
[Date "2018.05.25"]
[Round "7"]
[White "Galmandakh, Badrakh"]
[Black "Bayarkhuu, Khurelchuluun"]
[Result "0-1"]
[ECO "D02"]
[WhiteElo "2227"]
[BlackElo "2038"]
[Annotator "ChessBase"]
[PlyCount "120"]
[EventType "tourn"]
[EventCountry "MGL"]
[SourceTitle "playchess.com"]
[Source "ChessBase"]
[SourceQuality "1"]
[TimeControl "40/5400+30:1800+30"]

1. d4 {[%emt 0:01:13]} Nf6 {[%emt 0:00:14]} 2. Nf3 {[%emt 0:01:10]} e6 {[%emt 0:00:06]} 3. Bf4 {[%emt 0:00:05]} c5 {[%emt 0:00:10]} 4. e3 {[%emt 0:00:04]} Nc6 {[%emt 0:00:23]} 5. Nbd2 {[%emt 0:00:14]} d5 {[%emt 0:00:15]} 6. c3 {[%emt 0:01:25]} Qb6 {[%emt 0:03:21]} 7. Qc2 {[%emt 0:00:21]} Nh5 {[%emt 0:00:29]} 8. Bg3 {[%emt 0:00:43]} Nxg3 {[%emt 0:00:38]} 9. hxg3 {[%emt 0:00:04]} h6 {[%emt 0:00:08]} 10. Be2 {[%emt 0:03:37]} Bd7 {[%emt 0:01:42]} 11. O-O {[%emt 0:01:32]} Rc8 {[%emt 0:00:28]} 12. Qb3 {[%emt 0:00:39]} Bd6 {[%emt 0:03:18]} 13. Rfe1 {[%emt 0:00:26]} O-O {[%emt 0:00:25]} 14. Rac1 {[%emt 0:01:51]} Rfd8 {[%emt 0:13:12]} 15. dxc5 {[%emt 0:03:00]} Bxc5 {[%emt 0:00:53]} 16. Qxb6 {[%emt 0:00:14]} Bxb6 {[%emt 0:01:17]} 17. Nb3 {[%emt 0:01:18]} Ne7 {[%emt 0:15:36]} 18. Nbd4 {[%emt 0:03:01]} a6 {[%emt 0:00:27]} 19. Red1 {[%emt 0:03:57]} Ng6 {[%emt 0:01:16]} 20. Rd2 {[%emt 0:02:36]} Ba4 {[%emt 0:04:39]} 21. Bd1 {[%emt 0:03:34]} Bxd1 {[%emt 0:01:21]} 22. Rcxd1 {[%emt 0:01:05]} Rc4 {[%emt 0:04:26]} 23. Ne2 {[%emt 0:02:05]} Rdc8 {[%emt 0:00:47]} 24. Nf4 {[%emt 0:00:09]} Ne7 {[%emt 0:00:43]} 25. Ne2 {[%emt 0:03:11]} Nf5 {[%emt 0:03:43]} 26. Ned4 {[%emt 0:02:00]} Nd6 {[%emt 0:01:23]} 27. Kf1 {[%emt 0:04:17]} Ra4 {[%emt 0:02:46]} 28. a3 {[%emt 0:00:48]} Rac4 {[%emt 0:02:17]} 29. Ke2 {[%emt 0:00:51]} Ne4 {[%emt 0:01:27]} 30. Rc2 {[%emt 0:00:45]} R4c7 {[%emt 0:00:29]} 31. Rdc1 {[%emt 0:02:27]} Ba7 {[%emt 0:04:33]} 32. g4 {[%emt 0:06:26]} g6 {[%emt 0:03:57]} 33. Ne5 {[%emt 0:08:15]} Kg7 {[%emt 0:00:05]} 34. f3 {[%emt 0:00:34]} Nd6 {[%emt 0:00:05]} 35. Nd3 {[%emt 0:01:41]} e5 {[%emt 0:07:32]} 36. Nxe5 {[%emt 0:01:58]} Re7 {[%emt 0:00:05]} 37. Nd3 {[%emt 0:06:30]} Nc4 {[%emt 0:00:07]} 38. Kf2 {[%emt 0:03:54]} Nxe3 {[%emt 0:02:00]} 39. Rd2 {[%emt 0:04:06]} Nc4 {[%emt 0:08:14]} 40. Re2 {[%emt 0:01:31]} Rxe2+ {[%emt 0:00:30]} 41. Kxe2 {[%emt 0:00:14]} Nxb2 {[%emt 0:00:07]} 42. Nxb2 {[%emt 0:03:50]} Bxd4 {[%emt 0:00:05]} 43. Kd3 {[%emt 0:06:07]} Bf6 {[%emt 0:03:23]} 44. Nd1 {[%emt 0:05:54]} b5 {[%emt 0:02:49]} 45. Rb1 {[%emt 0:02:33]} Rc4 {[%emt 0:00:28]} 46. Rb3 {[%emt 0:02:42]} d4 {[%emt 0:07:42]} 47. Rb4 {[%emt 0:00:54]} dxc3 {[%emt 0:01:36]} 48. Rxc4 {[%emt 0:00:21]} bxc4+ {[%emt 0:00:02]} 49. Kc2 {[%emt 0:00:10]} Bd4 {[%emt 0:00:04]} 50. Nxc3 {[%emt 0:00:08]} Kf6 {[%emt 0:00:14]} 51. Nd5+ {[%emt 0:02:14]} Ke5 {[%emt 0:00:25]} 52. Nb4 {[%emt 0:00:27]} a5 {[%emt 0:01:07]} 53. Nc6+ {[%emt 0:01:39]} Kd5 {[%emt 0:00:04]} 54. Nd8 {[%emt 0:00:24]} f5 {[%emt 0:00:38]} 55. gxf5 {[%emt 0:00:53]} gxf5 {[%emt 0:00:05]} 56. a4 {[%emt 0:02:24]} h5 {[%emt 0:05:00]} 57. Nf7 {[%emt 0:00:10]} Bf6 {[%emt 0:00:19]} 58. Nh6 {[%emt 0:02:16]} Ke6 {[%emt 0:00:06]} 59. g4 {[%emt 0:00:22]} fxg4 {[%emt 0:00:59]} 60. fxg4 {[%emt 0:00:01]} Bg5 {[%emt 0:00:36]} 0-1

[Event "MGL-ch Men 2018"]
[Site "Archangai-Aimag"]
[Date "2018.05.25"]
[Round "7"]
[White "Bayarmandakh, Balgan"]
[Black "Baasansuren, Erdene"]
[Result "1-0"]
[ECO "A58"]
[WhiteElo "2211"]
[BlackElo "2244"]
[Annotator "ChessBase"]
[PlyCount "87"]
[EventType "tourn"]
[EventCountry "MGL"]
[SourceTitle "playchess.com"]
[Source "ChessBase"]
[SourceQuality "1"]
[TimeControl "40/5400+30:1800+30"]

1. d4 {[%emt 0:05:43]} Nf6 {[%emt 0:00:15]} 2. c4 {[%emt 0:00:00]} g6 {[%emt 0:00:12]} 3. g3 {[%emt 0:00:00]} Bg7 {[%emt 0:00:41]} 4. Bg2 {[%emt 0:00:00]} O-O {[%emt 0:00:37]} 5. e4 {[%emt 0:00:00]} c5 {[%emt 0:00:55]} 6. d5 {[%emt 0:00:27]} d6 {[%emt 0:00:34]} 7. Ne2 {[%emt 0:00:16]} b5 {[%emt 0:00:23]} 8. cxb5 {[%emt 0:00:11]} a6 {[%emt 0:00:13]} 9. bxa6 {[%emt 0:00:54]} Bxa6 {[%emt 0:00:23]} 10. O-O {[%emt 0:00:13]} Nbd7 {[%emt 0:00:33]} 11. Qc2 {[%emt 0:01:16]} Ne5 {[%emt 0:04:09]} 12. Rd1 {[%emt 0:00:15]} Qb6 {[%emt 0:20:30]} 13. Nbc3 {[%emt 0:00:50]} Rfb8 {[%emt 0:10:56]} 14. Rb1 {[%emt 0:05:45]} Qa5 {[%emt 0:09:18]} 15. h3 {[%emt 0:04:04]} Nfd7 {[%emt 0:02:42]} 16. Nf4 {[%emt 0:03:43]} Nc4 {[%emt 0:03:18]} 17. Nfe2 {[%emt 0:02:30]} Rb7 {[%emt 0:08:42]} 18. a4 {[%emt 0:11:29]} Qb4 {[%emt 0:05:39]} 19. b3 {[%emt 0:06:54]} Na3 {[%emt 0:02:36]} 20. Bxa3 {[%emt 0:00:09]} Qxa3 {[%emt 0:00:03]} 21. Bf1 {[%emt 0:00:19]} Rab8 {[%emt 0:17:49]} 22. Nc1 {[%emt 0:01:06]} Bxf1 {[%emt 0:01:53]} 23. Rxf1 {[%emt 0:00:54]} Bxc3 {[%emt 0:01:42]} 24. Qxc3 {[%emt 0:00:21]} Qb4 {[%emt 0:01:07]} 25. Qe3 {[%emt 0:10:49]} c4 {[%emt 0:01:13]} 26. Rd1 {[%emt 0:08:28]} Qa3 {[%emt 0:04:19]} 27. Rd4 {[%emt 0:01:03]} cxb3 {[%emt 0:00:25]} 28. Kg2 {[%emt 0:02:23]} Nc5 {[%emt 0:01:20]} 29. e5 {[%emt 0:01:26]} dxe5 {[%emt 0:01:02]} 30. Rc4 {[%emt 0:00:46]} Nxa4 {[%emt 0:00:14]} 31. Qh6 {[%emt 0:01:11]} e6 {[%emt 0:01:36]} 32. Rh4 {[%emt 0:00:38]} f6 {[%emt 0:00:31]} 33. Rxb3 {[%emt 0:00:09]} Rxb3 {[%emt 0:00:41]} 34. Qxh7+ {[%emt 0:00:08]} Kf8 {[%emt 0:00:07]} 35. Nxb3 {[%emt 0:00:52]} Qxb3 {[%emt 0:00:32]} 36. Qd7 {[%emt 0:00:32]} Kg8 {[%emt 0:00:51]} 37. Qxe6+ {[%emt 0:00:14]} Kg7 {[%emt 0:00:04]} 38. Qd7+ {[%emt 0:00:14]} Kg8 {[%emt 0:00:07]} 39. Rh7 {[%emt 0:00:31]} Rb7 {[%emt 0:01:18]} 40. Qxb7 {[%emt 0:00:09]} Qxb7 {[%emt 0:00:04]} 41. Rxb7 {[%emt 0:00:26]} Kf8 {[%emt 0:00:23]} 42. h4 {[%emt 0:00:16]} Nc3 {[%emt 0:00:12]} 43. d6 {[%emt 0:00:24]} Ne4 {[%emt 0:00:02]} 44. Rb8+ {[%emt 0:00:09]} 1-0

[Event "MGL-ch Men 2018"]
[Site "Archangai-Aimag"]
[Date "2018.05.28"]
[Round "11"]
[White "Gunbayar, Myagmarsuren"]
[Black "Enkhnar, Enkhbaatar"]
[Result "1/2-1/2"]
[ECO "A30"]
[WhiteElo "2265"]
[BlackElo "2401"]
[Annotator "NA"]
[PlyCount "146"]
[EventType "tourn"]
[EventCountry "MGL"]
[SourceTitle "playchess.com"]
[Source "ChessBase"]
[SourceQuality "1"]
[TimeControl "40/5400+30:1800+30"]

1. Nf3 {[%emt 0:00:20]} Nf6 {[%emt 0:00:03]} 2. g3 {[%emt 0:00:10]} b6 {[%emt 0:00:18]} 3. Bg2 {[%emt 0:00:06]} Bb7 {[%emt 0:00:05]} 4. O-O {[%emt 0:00:05]} c5 {[%emt 0:00:06]} 5. c4 {[%emt 0:00:22]} g6 {[%emt 0:00:06]} 6. e3 {[%emt 0:00:04]} Bg7 {[%emt 0:00:52]} 7. d4 {[%emt 0:00:07]} O-O {[%emt 0:00:05]} 8. Nc3 {[%emt 0:00:37]} Ne4 {[%emt 0:00:16]} 9. Qc2 {[%emt 0:00:32]} Nxc3 {[%emt 0:00:13]} 10. bxc3 {[%emt 0:00:29]} d6 {[%emt 0:00:19]} 11. e4 {[%emt 0:01:16]} Nc6 {[%emt 0:01:00]} 12. d5 {[%emt 0:00:13]} Na5 {[%emt 0:00:16]} 13. Nd2 {[%emt 0:00:41]} Ba6 {[%emt 0:00:09]} 14. Qd3 {[%emt 0:00:11]} Qd7 {[%emt 0:00:24]} 15. a4 {[%emt 0:00:16]} e6 {[%emt 0:00:16]} 16. Rd1 {[%emt 0:01:05]} exd5 {[%emt 0:00:23]} 17. exd5 {[%emt 0:00:14]} Rae8 {[%emt 0:01:07]} 18. Bf1 {[%emt 0:00:09]} Re7 {[%emt 0:01:07]} 19. Bb2 {[%emt 0:00:42]} Rfe8 {[%emt 0:00:20]} 20. Qb1 {[%emt 0:01:00]} h5 {[%emt 0:00:43]} 21. Qa2 {[%emt 0:00:09]} Qf5 {[%emt 0:00:33]} 22. Qb1 {[%emt 0:02:07]} Qd7 {[%emt 0:00:55]} 23. Qc2 {[%emt 0:00:59]} Bh6 {[%emt 0:00:20]} 24. Nb3 {[%emt 0:00:07]} Nxc4 {[%emt 0:01:41]} 25. Bc1 {[%emt 0:00:39]} Bxc1 {[%emt 0:01:43]} 26. Qxc1 {[%emt 0:01:50]} Qc8 {[%emt 0:00:12]} 27. a5 {[%emt 0:00:13]} Ne5 {[%emt 0:01:40]} 28. Bxa6 {[%emt 0:00:07]} Qxa6 {[%emt 0:05:42]} 29. axb6 {[%emt 0:00:17]} Qxb6 {[%emt 0:00:57]} 30. Na5 {[%emt 0:00:06]} c4 {[%emt 0:00:32]} 31. Qf4 {[%emt 0:01:14]} Nd3 {[%emt 0:00:49]} 32. Qd4 {[%emt 0:00:03]} Qxd4 {[%emt 0:00:12]} 33. cxd4 {[%emt 0:00:03]} Re2 {[%emt 0:00:10]} 34. Nxc4 {[%emt 0:01:40]} Nxf2 {[%emt 0:00:06]} 35. Rd2 {[%emt 0:00:08]} Rxd2 {[%emt 0:01:02]} 36. Nxd2 {[%emt 0:00:02]} Ne4 {[%emt 0:00:09]} 37. Nxe4 {[%emt 0:01:14]} Rxe4 {[%emt 0:00:05]} 38. Ra6 {[%emt 0:00:04]} Rxd4 {[%emt 0:00:17]} 39. Rxd6 {[%emt 0:00:04]} Kg7 {[%emt 0:00:21]} 40. Kg2 {[%emt 0:01:26]} Rd2+ {[%emt 0:00:06]} 41. Kg1 {[%emt 0:01:37]} a5 {[%emt 0:00:07]} 42. Rd8 {[%emt 0:00:46]} Kf6 {[%emt 0:00:25]} 43. d6 {[%emt 0:00:04]} Rd5 {[%emt 0:00:12]} 44. Ra8 {[%emt 0:00:18]} Ke6 {[%emt 0:01:10]} 45. Ra6 {[%emt 0:00:37]} Rd1+ {[%emt 0:00:52]} 46. Kg2 {[%emt 0:00:11]} Rd2+ {[%emt 0:00:06]} 47. Kg1 {[%emt 0:00:12]} Ra2 {[%emt 0:00:07]} 48. h3 {[%emt 0:00:30]} a4 {[%emt 0:00:13]} 49. Kh1 {[%emt 0:00:17]} a3 {[%emt 0:00:07]} 50. Kg1 {[%emt 0:00:02]} f5 {[%emt 0:00:16]} 51. h4 {[%emt 0:00:19]} Kd7 {[%emt 0:02:18]} 52. Kh1 {[%emt 0:00:09]} Ke6 {[%emt 0:05:14]} 53. Kg1 {[%emt 0:00:15]} Kf6 {[%emt 0:02:46]} 54. d7+ {[%emt 0:00:52]} Ke7 {[%emt 0:00:06]} 55. Ra7 {[%emt 0:00:02]} Rd2 {[%emt 0:02:21]} 56. Rxa3 {[%emt 0:00:04]} Rxd7 {[%emt 0:00:05]} 57. Kf2 {[%emt 0:00:15]} Rd6 {[%emt 0:00:01]} 58. Kf3 {[%emt 0:00:28]} Kf6 {[%emt 0:00:05]} 59. Rb3 {[%emt 0:00:05]} g5 {[%emt 0:00:04]} 60. hxg5+ {[%emt 0:00:12]} Kxg5 {[%emt 0:00:03]} 61. Rb8 {[%emt 0:00:52]} Rd3+ {[%emt 0:00:39]} 62. Kg2 {[%emt 0:00:02]} Rd6 {[%emt 0:00:15]} 63. Rg8+ {[%emt 0:00:11]} Rg6 {[%emt 0:00:04]} 64. Ra8 {[%emt 0:00:03]} h4 {[%emt 0:00:11]} 65. gxh4+ {[%emt 0:00:30]} Kxh4+ {[%emt 0:00:17]} 66. Kf3 {[%emt 0:00:02]} Kg5 {[%emt 0:00:06]} 67. Rb8 {[%emt 0:00:11]} Ra6 {[%emt 0:00:07]} 68. Rg8+ {[%emt 0:00:06]} Kf6 {[%emt 0:00:05]} 69. Rf8+ {[%emt 0:00:20]} Ke6 {[%emt 0:00:07]} 70. Re8+ {[%emt 0:00:06]} Kf7 {[%emt 0:00:02]} 71. Rb8 {[%emt 0:00:07]} Ra1 {[%emt 0:00:07]} 72. Rb6 {[%emt 0:00:09]} Ra4 {[%emt 0:00:07]} 73. Rc6 {[%emt 0:00:27]} Rb4 {[%emt 0:00:05]} 1/2-1/2

[Event "MGL-ch Men 2018"]
[Site "Archangai-Aimag"]
[Date "2018.05.28"]
[Round "11"]
[White "Galmandakh, Badrakh"]
[Black "Battulga, Namkhai"]
[Result "0-1"]
[ECO "D43"]
[WhiteElo "2227"]
[BlackElo "2404"]
[Annotator "NA"]
[PlyCount "82"]
[EventType "tourn"]
[EventCountry "MGL"]
[SourceTitle "playchess.com"]
[Source "ChessBase"]
[SourceQuality "1"]
[TimeControl "40/5400+30:1800+30"]

1. d4 {[%emt 0:04:46]} Nf6 {[%emt 0:00:33]} 2. Nf3 {[%emt 0:00:39]} e6 {[%emt 0:00:11]} 3. c4 {[%emt 0:05:58]} d5 {[%emt 0:00:29]} 4. Bg5 {[%emt 0:02:15]} h6 {[%emt 0:01:34]} 5. Bxf6 {[%emt 0:03:11]} Qxf6 {[%emt 0:00:08]} 6. Nc3 {[%emt 0:00:44]} c6 {[%emt 0:00:12]} 7. e3 {[%emt 0:02:02]} Nd7 {[%emt 0:00:06]} 8. Rc1 {[%emt 0:01:15]} g6 {[%emt 0:01:21]} 9. Bd3 {[%emt 0:02:58]} Bg7 {[%emt 0:02:46]} 10. cxd5 {[%emt 0:02:23]} exd5 {[%emt 0:00:15]} 11. O-O {[%emt 0:10:50]} Qe7 {[%emt 0:05:31]} 12. Rb1 {[%emt 0:07:39]} a5 {[%emt 0:01:23]} 13. a3 {[%emt 0:02:36]} O-O {[%emt 0:00:38]} 14. b4 {[%emt 0:00:51]} axb4 {[%emt 0:05:10]} 15. axb4 {[%emt 0:00:08]} b5 {[%emt 0:00:36]} 16. e4 {[%emt 0:08:49]} dxe4 {[%emt 0:00:21]} 17. Nxe4 {[%emt 0:00:40]} Nb6 {[%emt 0:11:53]} 18. Qc2 {[%emt 0:04:09]} Ra3 {[%emt 0:12:13]} 19. Rfe1 {[%emt 0:09:08]} Nd5 {[%emt 0:14:26]} 20. Nc3 {[%emt 0:01:56]} Rxc3 {[%emt 0:04:16]} 21. Qxc3 {[%emt 0:00:11]} Nxc3 {[%emt 0:00:08]} 22. Rxe7 {[%emt 0:00:03]} Nxb1 {[%emt 0:00:06]} 23. Bxb1 {[%emt 0:00:04]} Be6 {[%emt 0:00:29]} 24. Be4 {[%emt 0:02:03]} Rc8 {[%emt 0:05:17]} 25. Ra7 {[%emt 0:10:24]} Rd8 {[%emt 0:10:43]} 26. Bxc6 {[%emt 0:05:49]} Bxd4 {[%emt 0:00:12]} 27. Rb7 {[%emt 0:05:21]} Bc5 {[%emt 0:14:11]} 28. h4 {[%emt 0:05:18]} Rd1+ {[%emt 0:03:15]} 29. Kh2 {[%emt 0:00:00]} Bxf2 {[%emt 0:01:32]} 30. Rxb5 {[%emt 0:00:09]} f5 {[%emt 0:01:45]} 31. Re5 {[%emt 0:01:46]} Bc4 {[%emt 0:03:21]} 32. h5 {[%emt 0:01:37]} g5 {[%emt 0:00:28]} 33. Re8+ {[%emt 0:00:47]} Kg7 {[%emt 0:00:21]} 34. Re7+ {[%emt 0:00:16]} Kf6 {[%emt 0:00:37]} 35. Rd7 {[%emt 0:00:18]} Rc1 {[%emt 0:00:48]} 36. Rd6+ {[%emt 0:00:19]} Ke7 {[%emt 0:00:08]} 37. Rd7+ {[%emt 0:00:22]} Ke6 {[%emt 0:00:20]} 38. Nd4+ {[%emt 0:00:24]} Ke5 {[%emt 0:00:13]} 39. Nf3+ {[%emt 0:00:12]} Kf4 {[%emt 0:00:12]} 40. g3+ {[%emt 0:01:32]} Bxg3+ {[%emt 0:00:05]} 41. Kg2 {[%emt 0:00:19]} Bf1+ {[%emt 0:00:16]} 0-1

[Event "MGL-ch Men 2018"]
[Site "Archangai-Aimag"]
[Date "2018.05.28"]
[Round "11"]
[White "Bayarmandakh, Balgan"]
[Black "Erdene, Ganzorig"]
[Result "1/2-1/2"]
[ECO "D40"]
[WhiteElo "2211"]
[BlackElo "2299"]
[Annotator "NA"]
[PlyCount "64"]
[EventType "tourn"]
[EventCountry "MGL"]
[SourceTitle "playchess.com"]
[Source "ChessBase"]
[SourceQuality "1"]
[TimeControl "40/5400+30:1800+30"]

1. d4 {[%emt 0:00:05]} d5 {[%emt 0:00:05]} 2. c4 {[%emt 0:00:05]} e6 {[%emt 0:00:05]} 3. Nc3 {[%emt 0:00:05]} c5 {[%emt 0:00:06]} 4. e3 {[%emt 0:00:16]} Nc6 {[%emt 0:00:10]} 5. Nf3 {[%emt 0:00:06]} Nf6 {[%emt 0:00:06]} 6. Be2 {[%emt 0:00:21]} dxc4 {[%emt 0:00:37]} 7. Bxc4 {[%emt 0:00:08]} cxd4 {[%emt 0:00:10]} 8. exd4 {[%emt 0:00:06]} Be7 {[%emt 0:00:13]} 9. O-O {[%emt 0:00:06]} O-O {[%emt 0:00:06]} 10. h3 {[%emt 0:02:44]} a6 {[%emt 0:03:30]} 11. a4 {[%emt 0:00:07]} Qa5 {[%emt 0:00:32]} 12. Qe2 {[%emt 0:00:32]} Rd8 {[%emt 0:01:17]} 13. Rd1 {[%emt 0:00:34]} Qh5 {[%emt 0:01:50]} 14. Bf4 {[%emt 0:00:33]} Nd5 {[%emt 0:01:18]} 15. Bg3 {[%emt 0:02:42]} h6 {[%emt 0:01:52]} 16. Rac1 {[%emt 0:01:24]} Bd7 {[%emt 0:00:33]} 17. Bb3 {[%emt 0:03:04]} Bg5 {[%emt 0:05:34]} 18. Ra1 {[%emt 0:14:12]} Na5 {[%emt 0:01:14]} 19. Bc2 {[%emt 0:10:30]} Rac8 {[%emt 0:01:55]} 20. Nxd5 {[%emt 0:01:56]} exd5 {[%emt 0:00:12]} 21. Qd3 {[%emt 0:00:11]} g6 {[%emt 0:00:17]} 22. Bb1 {[%emt 0:05:32]} Bf5 {[%emt 0:04:46]} 23. Qf1 {[%emt 0:00:31]} Bc2 {[%emt 0:00:58]} 24. Bxc2 {[%emt 0:00:20]} Rxc2 {[%emt 0:00:06]} 25. Bc7 {[%emt 0:00:12]} Qxf3 {[%emt 0:08:13]} 26. Bxa5 {[%emt 0:10:49]} Qf5 {[%emt 0:03:09]} 27. Bxd8 {[%emt 0:00:17]} Bxd8 {[%emt 0:00:06]} 28. Ra3 {[%emt 0:01:27]} Rxb2 {[%emt 0:02:08]} 29. Rf3 {[%emt 0:01:00]} Qd7 {[%emt 0:00:19]} 30. Rb1 {[%emt 0:00:49]} Rxb1 {[%emt 0:02:07]} 31. Qxb1 {[%emt 0:00:08]} Kg7 {[%emt 0:00:29]} 32. Qb3 {[%emt 0:00:19]} Bf6 {[%emt 0:00:23]} 1/2-1/2

[Event "MGL-ch Men 2018"]
[Site "Archangai-Aimag"]
[Date "2018.05.28"]
[Round "11"]
[White "Amartuvshin, Ganzorig"]
[Black "Bayarkhuu, Khurelchuluun"]
[Result "0-1"]
[ECO "E32"]
[WhiteElo "2146"]
[BlackElo "2038"]
[Annotator "NA"]
[PlyCount "92"]
[EventType "tourn"]
[EventCountry "MGL"]
[SourceTitle "playchess.com"]
[Source "ChessBase"]
[SourceQuality "1"]
[TimeControl "40/5400+30:1800+30"]

1. d4 {[%emt 0:00:00]} Nf6 {[%emt 0:00:45]} 2. c4 {[%emt 0:00:05]} e6 {[%emt 0:00:02]} 3. Nc3 {[%emt 0:00:06]} Bb4 {[%emt 0:00:10]} 4. Nf3 {[%emt 0:00:06]} d6 {[%emt 0:00:07]} 5. Qc2 {[%emt 0:01:24]} Nbd7 {[%emt 0:00:13]} 6. Bd2 {[%emt 0:03:24]} c5 {[%emt 0:00:27]} 7. e3 {[%emt 0:02:03]} b6 {[%emt 0:00:48]} 8. Nb5 {[%emt 0:01:06]} Bxd2+ {[%emt 0:02:35]} 9. Nxd2 {[%emt 0:01:06]} Ke7 {[%emt 0:05:02]} 10. Ne4 {[%emt 0:04:51]} Nxe4 {[%emt 0:00:33]} 11. Qxe4 {[%emt 0:00:11]} Ba6 {[%emt 0:00:02]} 12. Qh4+ {[%emt 0:04:02]} Nf6 {[%emt 0:01:18]} 13. Be2 {[%emt 0:03:06]} Bxb5 {[%emt 0:01:53]} 14. cxb5 {[%emt 0:00:08]} cxd4 {[%emt 0:00:53]} 15. Qxd4 {[%emt 0:00:11]} Rc8 {[%emt 0:00:19]} 16. O-O {[%emt 0:00:44]} Qc7 {[%emt 0:03:19]} 17. Bf3 {[%emt 0:06:38]} d5 {[%emt 0:08:02]} 18. Qa4 {[%emt 0:01:13]} Rhd8 {[%emt 0:00:07]} 19. Qa3+ {[%emt 0:00:28]} Ke8 {[%emt 0:00:04]} 20. b3 {[%emt 0:03:31]} Qd7 {[%emt 0:03:03]} 21. Qa6 {[%emt 0:04:42]} Rc7 {[%emt 0:00:36]} 22. g3 {[%emt 0:02:25]} Ke7 {[%emt 0:00:40]} 23. Rfd1 {[%emt 0:01:00]} Rc5 {[%emt 0:01:59]} 24. b4 {[%emt 0:03:46]} Rc4 {[%emt 0:00:48]} 25. Be2 {[%emt 0:00:53]} Rc3 {[%emt 0:03:04]} 26. a4 {[%emt 0:02:21]} Rdc8 {[%emt 0:03:21]} 27. a5 {[%emt 0:00:07]} Qc7 {[%emt 0:00:05]} 28. axb6 {[%emt 0:00:24]} axb6 {[%emt 0:00:02]} 29. Bd3 {[%emt 0:00:36]} g6 {[%emt 0:07:49]} 30. Ra3 {[%emt 0:01:01]} Rxa3 {[%emt 0:01:26]} 31. Qxa3 {[%emt 0:00:05]} Qc3 {[%emt 0:00:20]} 32. Qa7+ {[%emt 0:02:03]} Nd7 {[%emt 0:00:02]} 33. e4 {[%emt 0:14:51]} d4 {[%emt 0:03:00]} 34. Bf1 {[%emt 0:18:08]} Qxb4 {[%emt 0:01:28]} 35. e5 {[%emt 0:01:39]} Qc5 {[%emt 0:00:47]} 36. Qa4 {[%emt 0:06:58]} Nxe5 {[%emt 0:00:37]} 37. Bg2 {[%emt 0:00:04]} Rd8 {[%emt 0:02:49]} 38. h3 {[%emt 0:00:16]} Kf8 {[%emt 0:01:12]} 39. Kh2 {[%emt 0:00:26]} Kg7 {[%emt 0:01:06]} 40. f4 {[%emt 0:00:37]} Qc4 {[%emt 0:01:13]} 41. Qa7 {[%emt 0:12:14]} Qe2 {[%emt 0:00:22]} 42. Ra1 {[%emt 0:00:09]} d3 {[%emt 0:12:39]} 43. fxe5 {[%emt 0:04:15]} d2 {[%emt 0:00:02]} 44. Qxb6 {[%emt 0:02:08]} d1=Q {[%emt 0:00:10]} 45. Rxd1 {[%emt 0:00:03]} Rxd1 {[%emt 0:00:14]} 46. Qc6 {[%emt 0:00:21]} Qxe5 {[%emt 0:00:53]} 0-1